bitfinex-derivatives/quotes_ETHF0:USTF0_20251001
["timestamp","ask_amount","ask_price","bid_price","bid_amount"]
[1759355395883,8.20951327,4299.4,4299.0,0.261]
[1759355396171,3.20951327,4299.4,4299.1,0.261]
[1759355396475,0.7334,4299.3,4299.1,0.261]
[1759355396864,3.20951327,4299.4,4299.1,0.261]
[1759355398471,0.7334,4299.3,4299.1,0.261]
[1759355399171,0.7334,4299.3,4299.2,0.26]
[1759355400072,3.20951327,4299.4,4299.2,0.26]
[1759355400278,3.20951327,4299.4,4299.3,0.7362]
[1759355400681,3.20951327,4299.4,4299.3,37.2602]
[1759355400886,3.20951327,4299.4,4299.1,0.7362]
[1759355401077,0.7334,4299.3,4299.2,36.525]
[1759355401779,0.7334,4299.2,4298.9,0.00177052]
[1759355401980,0.7334,4295.4,4294.4,0.264]
[1759355402169,0.7334,4295.4,4294.5,3.3149999]
[1759355402479,3.2078,4295.6,4295.0,40.8]
[1759355402773,3.2078,4296.1,4295.4,3.2078]
[1759355402971,0.7334,4297.3,4296.0,3.2078]
[1759355403281,3.9412,4297.3,4296.3,3.2078]
[1759355403577,3.2078,4297.3,4296.4,36.535]
[1759355403777,3.2078,4297.3,4296.8,3.3149999]
[1759355403982,3.21057374,4297.3,4297.0,0.582]
[1759355404173,0.00277374,4297.3,4297.2,0.582]
[1759355404674,0.00277374,4297.3,4297.2,5.582]
[1759355404874,0.00277374,4297.3,4297.2,46.382]
[1759355405975,3.2078,4297.9,4297.2,45.8]
[1759355406172,3.2078,4297.9,4297.3,0.848]
[1759355406978,2.55130117,4297.4,4295.0,0.26212344]
[1759355407181,3.2078,4295.5,4294.2,0.023]
[1759355407382,3.2078,4294.3,4294.2,0.023]
[1759355407681,3.2078,4294.3,4294.2,40.823]
[1759355408181,3.2078,4294.3,4294.2,77.34817071]
[1759355408182,3.21051917,4294.3,4294.2,77.34817071]
[1759355408681,3.21051917,4294.3,4294.2,77.34917071]
[1759355409077,3.21051917,4294.3,4294.2,78.08537071]
[1759355410282,3.21051917,4294.3,4294.2,41.80837071]
[1759355410477,3.21051917,4294.3,4294.2,42.06827071]
[1759355410977,3.21051917,4294.3,4294.2,44.74209415]
[1759355411175,3.21051917,4294.3,4291.4,0.7362]
[1759355411176,3.2078,4293.0,4291.4,0.7362]
[1759355411381,3.2078,4293.0,4291.2,0.131]
[1759355411382,3.2078,4291.5,4291.2,0.131]
[1759355411581,3.2078,4291.5,4291.3,40.8]
[1759355411880,3.2078,4291.5,4291.4,1.0122]
[1759355412081,3.2078,4291.5,4291.4,0.27913467]
[1759355412283,3.2078,4291.5,4291.4,1.01533467]
[1759355412489,3.2078,4291.5,4291.4,0.73833467]
[1759355412686,3.2078,4291.5,4291.4,41.53833467]
[1759355412985,3.2078,4291.5,4291.4,77.97733467]
[1759355413191,3.2078,4291.5,4291.4,41.53833467]
[1759355413390,3.2078,4291.5,4291.4,78.11033467]
[1759355414284,3.2078,4291.5,4291.4,78.11533467]
[1759355415285,3.2078,4291.5,4291.4,83.11533467]
[1759355415490,3.2078,4291.7,4291.5,0.7362]
[1759355415685,3.2078,4291.7,4291.6,1.0152]
[1759355416391,3.2078,4291.7,4291.6,41.8152]
[1759355416588,3.9412,4291.7,4290.1,2.68043573]
[1759355416780,3.9412,4291.7,4284.4,226.921]
[1759355416781,0.7334,4289.9,4287.8,0.7362]
[1759355416984,3.2078,4288.5,4287.6,0.2599]
[1759355417185,0.7334,4289.9,4288.4,40.8]
[1759355417387,0.7334,4289.9,4289.4,3.2078]
[1759355417688,0.7334,4289.8,4289.5,5.283]
[1759355417883,0.7334,4289.8,4289.6,36.311]
[1759355418080,0.2704,4290.6,4289.6,5.0]
[1759355418281,3.2078,4292.0,4290.2,3.2078]
[1759355418480,0.2704,4292.4,4291.1,3.2078]
[1759355418680,0.2704,4292.4,4291.7,3.2078]
[1759355418884,0.2704,4292.4,4291.8,36.598]
[1759355419183,3.2078,4293.5,4292.3,3.2078]
[1759355419382,3.2078,4293.5,4292.4,0.283]
[1759355419588,3.2078,4293.5,4292.9,3.2078]
[1759355419886,0.2704,4293.8,4293.0,0.283]
[1759355420089,0.7334,4293.7,4293.0,0.28528384]
[1759355420286,0.7334,4293.7,4288.3,1.63298913]
[1759355420287,2.319,4293.0,4289.7,3.2078]
[1759355420491,2.319,4293.0,4289.8,1.0252]
[1759355420492,3.2078,4289.9,4289.8,1.0252]
[1759355420787,3.2078,4289.9,4289.8,1.0262]
[1759355421091,3.2078,4289.9,4289.8,2.9101]
[1759355421281,0.00214622,4289.9,4289.8,2.91231662]
[1759355421481,1e-08,4289.9,4289.8,43.71231662]
[1759355421892,1e-08,4289.9,4289.8,48.71231662]
[1759355422390,1.32390001,4290.4,4289.9,1.038]
[1759355422886,1.32390001,4290.4,4290.1,1.038]
[1759355423086,1.32390001,4290.4,4290.0,36.612]
[1759355423285,1.32678417,4290.4,4290.1,36.613]
[1759355423688,1.32678417,4290.4,4289.8,40.80221662]
[1759355423890,1.32678417,4290.4,4290.0,1.0096]
[1759355424090,1.32678417,4290.4,4290.2,1.0096]
[1759355424292,1.32678417,4290.4,4290.3,36.615]
[1759355424693,1.32678417,4290.4,4290.3,38.0051]
[1759355424897,1.32678417,4290.4,4290.3,78.8051]
[1759355426495,1.32678417,4290.4,4290.3,83.8051]
[1759355428203,3.2078,4290.8,4290.4,1.0096]
[1759355428402,3.2078,4290.8,4290.6,1.0096]
[1759355428602,3.2078,4290.8,4290.7,1.2986]
[1759355429299,1.06623667,4290.8,4290.7,47.0986]
[1759355430200,3.2078,4291.3,4290.8,1.0096]
[1759355430406,3.2078,4291.3,4290.9,0.289]
[1759355430698,3.2078,4291.3,4291.0,1.0096]
[1759355430903,3.2078,4291.3,4291.2,1.0096]
[1759355431200,3.2096671,4291.3,4291.2,1.2976]
[1759355431401,0.0018671,4291.3,4291.2,4.8859]
[1759355431595,3.2078,4292.0,4291.3,1.0096]
[1759355431799,3.2078,4292.0,4291.4,0.288]
[1759355432004,3.2078,4292.0,4291.5,1.0096]
[1759355432206,3.2078,4292.0,4291.9,2.85777131]
[1759355432404,3.2078,4292.0,4291.9,4.15537131]
[1759355432605,3.21072148,4292.0,4291.9,4.15537131]
[1759355432907,3.21072148,4292.0,4291.9,44.66737131]
[1759355433300,3.21072148,4292.0,4291.9,81.28937131]
[1759355435109,0.00292148,4292.0,4291.9,81.28937131]
[1759355436304,0.00292148,4292.0,4291.9,81.28637131]
[1759355437611,0.00292148,4292.0,4291.9,81.28537131]
[1759355440212,0.00292148,4292.0,4291.9,81.28437131]
[1759355441409,0.00986,4292.6,4292.5,0.3805]
[1759355441617,0.00986,4292.6,4292.5,44.07067131]
[1759355442013,0.00986,4292.6,4292.5,84.87067131]
[1759355442416,0.01287903,4292.6,4292.5,84.87067131]
[1759355442811,0.01287903,4292.6,4292.5,89.87067131]
[1759355443016,3.2078,4293.8,4292.5,88.86107131]
[1759355443211,3.2078,4293.8,4293.4,2.85777131]
[1759355443417,3.2078,4293.8,4293.5,1.2936]
[1759355443613,4.1958,4293.8,4293.5,1.2936]
[1759355443814,4.1958,4293.8,4293.5,0.284]
[1759355444017,4.19805737,4293.8,4293.6,1.0096]
[1759355444215,4.19805737,4293.8,4293.7,1.2936]
[1759355444216,3.21005737,4293.8,4293.7,1.2936]
[1759355444412,0.00225737,4293.8,4293.7,1.2936]
[1759355444617,0.00225737,4293.8,4293.7,1.48138131]
[1759355444818,3.2078,4294.4,4293.7,1.48138131]
[1759355444819,3.2078,4294.4,4293.8,1.0096]
[1759355445020,3.2078,4294.4,4294.3,3.86737131]
[1759355445219,3.2078,4294.4,4294.3,40.47937131]
[1759355445420,3.2078,4295.0,4294.3,40.47937131]
[1759355445619,0.988,4295.4,4294.9,40.8]
[1759355445918,0.988,4295.3,4295.0,0.283]
[1759355446115,0.00167909,4295.4,4295.0,0.283]
[1759355446317,0.988,4295.3,4295.0,0.283]
[1759355446518,0.00167909,4295.4,4295.0,0.283]
[1759355446714,0.98967909,4295.4,4295.0,0.283]
[1759355446915,0.98967909,4295.4,4295.1,1.0096]
[1759355447113,0.98967909,4295.4,4295.2,0.283]
[1759355447319,0.00167909,4295.4,4295.3,1.0096]
[1759355447614,0.00167909,4295.4,4295.3,3.86737131]
[1759355448012,0.00167909,4295.4,4295.3,44.66737131]
[1759355449420,3.2078,4296.6,4295.6,1.0096]
[1759355449621,3.2078,4296.6,4296.3,1.0096]
[1759355449819,3.2078,4296.6,4296.4,36.602]
[1759355450121,4.1958,4296.6,4296.4,37.6116]
[1759355450322,3.21081402,4296.6,4296.5,1.0096]
[1759355450822,0.00301402,4296.6,4296.5,1.0096]
[1759355451021,0.00301402,4296.6,4296.5,41.8096]
[1759355453517,0.00301402,4296.6,4296.5,42.2276]
[1759355454024,0.00301402,4296.6,4296.5,47.2276]
[1759355455924,3.2078,4297.2,4296.5,47.2276]
[1759355456126,3.2078,4297.2,4297.1,3.87587131]
[1759355456320,3.2078,4297.2,4297.1,4.15587131]
[1759355456521,3.2078,4297.2,4297.1,44.95587131]
[1759355456722,3.2078,4297.2,4297.1,44.67587131]
[1759355456919,3.20989457,4297.2,4297.1,81.26369102]
[1759355457123,3.20989457,4297.2,4297.1,86.26369102]
[1759355457329,0.00209457,4297.2,4297.1,81.26269102]
[1759355458730,1.0683,4298.2,4297.1,81.26269102]
[1759355459025,3.2078,4298.3,4297.8,3.87587131]
[1759355459229,3.2078,4298.3,4297.8,4.15587131]
[1759355459729,0.02455077,4297.9,4297.8,44.95587131]
[1759355460425,0.09871795,4297.9,4297.8,44.95587131]
[1759355460925,3.2078,4298.3,4297.9,1.0181]
[1759355461129,3.2078,4298.3,4298.1,1.0181]
[1759355461427,4.2761,4298.3,4298.2,0.279]
[1759355461823,1.07115567,4298.3,4298.2,0.279]
[1759355462019,1.07115567,4298.3,4298.2,41.079]
[1759355462822,0.00285567,4298.3,4298.2,42.0971]
[1759355463019,0.00285567,4298.3,4298.2,43.93602203]
[1759355463419,1.07115567,4298.3,4298.2,43.93602203]
[1759355463720,0.00285567,4298.3,4298.2,41.079]
[1759355463920,0.00285567,4298.3,4298.2,42.0971]
[1759355464328,1.07115567,4298.3,4298.2,42.0971]
[1759355464829,1.07115567,4298.3,4298.2,44.00298662]
[1759355465128,0.00285567,4298.3,4298.2,44.00298662]
[1759355465724,0.419,4299.0,4298.2,44.00298662]
[1759355465919,0.419,4299.0,4298.9,2.85777131]
[1759355466129,1.4873,4299.0,4298.9,39.42477131]
[1759355466530,1.4873,4299.0,4298.9,80.22477131]
[1759355466733,1.49024412,4299.0,4298.9,80.22477131]
[1759355467527,1.07124412,4299.0,4298.9,80.22477131]
[1759355467736,1.07124412,4299.0,4298.9,81.24287131]
[1759355467936,1.07124412,4299.0,4298.9,80.22477131]
[1759355468322,6.07124412,4299.0,4298.9,81.24287131]
[1759355468525,0.00294412,4299.0,4298.9,78.3851]
[1759355470026,1.0683,4299.5,4298.9,78.3851]
[1759355470330,3.2078,4299.8,4299.4,3.87587131]
[1759355470527,1.0683,4299.7,4299.5,0.276]
[1759355470732,3.2078,4299.8,4299.5,0.276]
[1759355470931,1.0683,4299.7,4299.5,1.2941]
[1759355471523,1.0683,4299.7,4299.5,0.276]
[1759355471726,1.0683,4299.7,4299.6,36.559]
[1759355472126,1.0683,4299.7,4299.6,77.359]
[1759355472531,1.0683,4299.7,4299.6,78.3771]
[1759355473535,4.27773379,4299.8,4299.7,1.0181]
[1759355474134,4.27773379,4299.8,4299.7,41.8181]
[1759355475433,1.06993379,4299.8,4299.7,41.8181]
[1759355477541,0.00163379,4299.8,4299.7,41.8181]
[1759355478245,4.2761,4300.3,4300.2,2.3942]
[1759355478246,4.9869,4300.3,4300.2,2.3942]
[1759355478440,4.9869,4300.3,4300.2,5.52597131]
[1759355478943,4.9869,4300.3,4300.2,46.32597131]
[1759355479146,4.98858585,4300.3,4300.2,46.32899437]
[1759355481240,3.92028585,4300.3,4300.2,46.32899437]
[1759355481642,3.92028585,4300.3,4300.2,82.59999437]
[1759355482346,3.92028585,4300.3,4300.2,83.06212226]
[1759355483146,3.20948585,4300.3,4300.2,83.06212226]
[1759355486051,0.00168585,4300.3,4300.2,83.06212226]
[1759355488557,0.9653,4300.8,4300.2,83.06212226]
[1759355488752,0.9653,4300.8,4300.7,2.3782]
[1759355488956,0.9653,4300.8,4300.7,2.6492]
[1759355489155,0.9653,4301.3,4300.7,43.4492]
[1759355489345,0.9653,4301.3,4301.2,0.6372]
[1759355489656,2.28072849,4301.3,4301.2,0.9082]
[1759355490454,2.28072849,4301.3,4301.2,41.7082]
[1759355491357,2.28072849,4301.3,4301.2,42.7551]
[1759355494162,0.66902849,4301.3,4301.2,42.7551]
[1759355494563,0.00262849,4301.3,4301.2,42.7551]
[1759355501667,0.00262849,4301.3,4301.2,79.0121]
[1759355503466,0.00262849,4301.3,4301.2,80.64508913]
[1759355504170,0.00262849,4301.3,4301.2,79.0121]
[1759355506573,2.2781,4301.9,4301.8,1.3313]
[1759355506772,2.2781,4301.9,4301.8,2.6442]
[1759355507271,2.2781,4301.9,4301.8,43.4442]
[1759355507674,2.28051377,4301.9,4301.8,43.4442]
[1759355510071,2.28051377,4301.9,4301.8,43.63047204]
[1759355512070,0.00241377,4301.9,4301.8,43.63047204]
[1759355512775,0.96771377,4301.9,4301.8,43.63047204]
[1759355515674,0.00241377,4301.9,4301.8,43.63047204]
[1759355518181,0.00241377,4301.9,4301.8,44.61736469]
[1759355522481,0.00241377,4301.9,4301.8,44.35136469]
[1759355522682,0.00241377,4301.9,4301.8,80.86736469]
[1759355523484,0.00241377,4301.9,4301.8,82.91634854]
[1759355525285,0.00241377,4301.9,4301.8,80.86736469]
[1759355526783,0.9444,4302.3,4301.8,79.82046469]
[1759355526981,0.9444,4302.3,4302.2,3.33919265]
[1759355527181,1.6211,4302.3,4302.2,3.60119265]
[1759355527488,1.6211,4302.3,4302.2,44.40119265]
[1759355527688,1.62402468,4302.3,4302.2,44.40119265]
[1759355528792,0.94732468,4302.3,4302.2,44.40119265]
[1759355529184,0.00292468,4302.3,4302.2,46.24844028]
[1759355530190,0.00292468,4302.3,4302.2,45.98644028]
[1759355530488,0.00292468,4302.3,4302.2,82.49844028]
[1759355531086,0.00292468,4302.3,4302.2,45.98644028]
[1759355531286,0.00292468,4302.3,4302.2,82.49744028]
[1759355532686,0.00292468,4302.3,4302.2,84.5834876]
[1759355533278,0.00292468,4302.3,4302.2,84.58406902]
[1759355534584,0.00292468,4302.3,4302.2,82.49744028]
[1759355534787,4.1742,4302.9,4302.2,82.49744028]
[1759355534984,4.1742,4302.9,4302.8,5.00850679]
[1759355535184,4.1742,4302.9,4302.8,5.26850679]
[1759355535486,3.2298,4302.9,4302.8,46.06850679]
[1759355535877,3.23264691,4302.9,4302.8,46.06850679]
[1759355536081,4.17704691,4302.9,4302.8,44.39919265]
[1759355537080,3.23264691,4302.9,4302.8,44.39919265]
[1759355537277,3.23264691,4302.9,4302.8,46.06819787]
[1759355537482,3.23264691,4302.9,4302.8,44.39919265]
[1759355537682,4.17704691,4302.9,4302.8,44.39919265]
[1759355538193,4.17704691,4302.9,4302.8,46.06819033]
[1759355538490,3.23264691,4302.9,4302.8,44.39919265]
[1759355539393,4.17704691,4302.9,4302.8,44.39919265]
[1759355539594,3.23264691,4302.9,4302.8,44.39919265]
[1759355542291,3.23264691,4302.9,4302.8,44.25053454]
[1759355543588,3.23264691,4302.9,4302.8,45.08876908]
[1759355546391,3.23264691,4302.9,4302.8,47.17541175]
[1759355546901,0.77420387,4303.3,4303.2,1.315]
[1759355547190,3.2078,4303.5,4303.4,0.6649]
[1759355547397,2.73077381,4303.5,4303.4,2.523]
[1759355547695,3.846,4304.0,4303.9,1.315]
[1759355547887,3.8477073,4304.0,4303.9,39.6087377]
[1759355548994,4.8224073,4304.0,4303.9,39.6087377]
[1759355549394,4.8224073,4304.0,4303.9,40.0267577]
[1759355549997,4.8224073,4304.0,4303.9,80.8267577]
[1759355553199,2.6112273,4304.0,4303.9,80.8267577]
[1759355553401,0.0017073,4304.0,4303.9,82.49513189]
[1759355553601,0.0017073,4304.0,4303.9,82.49113189]
[1759355557106,5.8539,4304.5,4304.4,1.6159]
[1759355557303,5.8539,4304.5,4304.4,1.8719]
[1759355557698,5.8539,4304.5,4304.4,2.522]
[1759355557901,5.85596493,4304.5,4304.4,43.322]
[1759355558202,5.45456493,4304.5,4304.4,43.322]
[1759355559603,2.24676493,4304.5,4304.4,43.322]
[1759355559807,1.61496493,4304.5,4304.4,43.322]
[1759355561407,0.00206493,4304.5,4304.4,43.322]
[1759355564611,0.00206493,4304.5,4304.4,44.99037419]
[1759355568810,3.2078,4305.0,4304.4,44.03937419]
[1759355569015,3.2078,4305.0,4304.9,3.10423454]
[1759355569212,3.2078,4305.5,4304.9,2.40723454]
[1759355569414,1.6129,4305.1,4305.0,43.066]
[1759355569816,1.61502405,4305.1,4305.0,43.066]
[1759355570006,0.00212405,4305.1,4305.0,43.4461]
[1759355570211,0.97682405,4305.1,4305.0,43.4461]
[1759355571216,0.00212405,4305.1,4305.0,43.4461]
[1759355574016,0.00212405,4305.1,4305.0,43.62696171]
[1759355576417,0.00212405,4305.1,4305.0,44.04487171]
[1759355576915,3.8432,4305.5,4305.4,2.58617]
[1759355577116,3.8432,4305.5,4305.4,2.83917]
[1759355577807,3.84550949,4305.5,4305.4,2.83917]
[1759355578414,0.63770949,4305.5,4305.4,2.83917]
[1759355578825,0.00230949,4305.5,4305.4,2.83917]
[1759355579821,0.00230949,4305.5,4305.4,43.63917]
[1759355581323,1.00370949,4305.5,4305.4,79.86817]
[1759355581624,0.00230949,4305.5,4305.4,81.53455263]
[1759355581918,0.00230949,4305.5,4305.4,82.37278717]
[1759355582113,0.00230949,4305.5,4305.4,81.53455263]
[1759355583112,0.00230949,4305.5,4305.4,79.86817]
[1759355583318,0.00230949,4305.5,4305.4,81.53455263]
[1759355584322,0.00230949,4305.5,4305.4,79.86817]
[1759355584823,0.00230949,4305.5,4305.4,81.53455263]
[1759355585225,0.00230949,4305.5,4305.4,82.37278717]
[1759355586120,1.00370949,4305.5,4305.4,43.38617]
[1759355586323,1.38530949,4305.5,4305.4,41.21787]
[1759355586527,6.38530949,4305.5,4305.4,77.69787]
[1759355587026,9.59310949,4305.5,4305.4,77.69787]
[1759355587916,9.59310949,4305.5,4305.4,77.69687]
[1759355588320,9.59310949,4305.5,4305.4,41.21787]
[1759355588517,9.59310949,4305.5,4305.4,77.69787]
[1759355591122,13.21010949,4305.5,4305.4,77.69787]
[1759355591322,13.21010949,4305.5,4305.4,78.53610454]
[1759355592827,13.21010949,4305.5,4305.4,42.05610454]
[1759355593125,13.21010949,4305.5,4305.4,78.53510454]
[1759355595222,13.21010949,4305.5,4305.4,79.46090454]
[1759355598134,11.82710949,4305.5,4305.4,79.46090454]
[1759355598335,12.82850949,4305.5,4305.4,79.46090454]
[1759355599626,12.82850949,4305.5,4305.4,42.98190454]
[1759355599827,12.82850949,4305.5,4305.4,79.46190454]
[1759355602430,0.6647,4305.2,4305.1,37.89438263]
[1759355602635,3.14243454,4305.2,4305.1,20.86269427]
[1759355602835,7.17383454,4305.2,4305.1,19.18439427]
[1759355604040,7.17383454,4305.2,4305.1,1.19]
[1759355604243,7.32199264,4305.2,4305.1,1.19]
[1759355605838,10.93899264,4305.2,4305.1,1.19]
[1759355611041,10.93899264,4305.2,4305.1,0.939]
[1759355611345,10.93899264,4305.2,4305.1,1.19]
[1759355611535,10.93899264,4305.2,4305.1,0.939]
[1759355611741,10.93899264,4305.2,4305.1,1.19]
[1759355611937,2.427,4305.1,4305.0,0.4]
[1759355612242,2.427,4305.1,4305.0,0.651]
[1759355613944,2.427,4305.1,4305.0,1.7168]
[1759355614444,7.427,4305.1,4305.0,1.7168]
[1759355616247,7.427,4305.1,4305.0,1.4658]
[1759355616448,2.427,4305.1,4305.0,1.4658]
[1759355620455,2.8449,4305.1,4305.0,1.7168]
[1759355621349,7.8449,4305.1,4305.0,1.4658]
[1759355621548,7.8449,4305.1,4305.0,1.7168]
[1759355621950,2.8449,4305.1,4305.0,1.7168]
[1759355624748,2.8449,4305.1,4305.0,3.1255]
[1759355624955,3.41339264,4305.1,4305.0,3.1255]
[1759355625356,2.427,4305.1,4305.0,3.1255]
[1759355628559,0.98639264,4305.2,4305.1,2.4745]
[1759355628752,1.49689492,4305.2,4305.1,2.4745]
[1759355638268,4.70469492,4305.2,4305.1,2.4745]
[1759355639975,1.49689492,4305.2,4305.1,2.4745]
[1759355640176,4.70469492,4305.2,4305.1,2.4745]
[1759355642580,3.71830228,4305.2,4305.1,2.4745]
[1759355643880,3.71830228,4305.2,4305.1,2.7255]
[1759355644481,4.95530228,4305.2,4305.1,2.7255]
[1759355644780,4.95694422,4305.2,4305.1,2.7255]
[1759355649488,1.74914422,4305.2,4305.1,2.7255]
[1759355649687,4.95694422,4305.2,4305.1,2.7255]
[1759355656485,4.95694422,4305.2,4305.1,7.7255]
[1759355656795,4.4448,4305.2,4305.1,7.7255]
[1759355662998,4.4448,4305.2,4305.1,48.5255]
[1759355663596,0.00230949,4305.5,4305.1,48.5255]
[1759355663893,0.00230949,4305.5,4305.4,2.2834]
[1759355664095,0.00230949,4305.5,4305.4,2.5344]
[1759355664601,0.00230949,4305.5,4305.4,43.3344]
[1759355665391,0.00230949,4305.5,4305.4,48.3344]
[1759355665596,0.00230949,4305.5,4305.4,43.0834]
[1759355665901,0.00230949,4305.5,4305.4,43.3344]
[1759355668101,0.00230949,4305.5,4305.4,43.0834]
[1759355668299,1.19230949,4305.5,4305.4,43.3344]
[1759355670798,1.19230949,4305.5,4305.4,43.3334]
[1759355671005,2.03005228,4305.5,4305.4,0.9561]
[1759355671303,2.03005228,4305.5,4305.4,1.2061]
[1759355672698,1.19230949,4305.5,4305.4,1.2061]
[1759355672904,2.03005228,4305.5,4305.4,1.8543]
[1759355675806,5.23785228,4305.5,4305.4,1.8543]
[1759355681713,5.23785228,4305.5,4305.4,2.5334]
[1759355683004,5.23785228,4305.5,4305.4,0.9561]
[1759355683207,5.23785228,4305.5,4305.4,1.2061]
[1759355683708,5.23785228,4305.5,4305.4,1.8543]
[1759355689117,5.23785228,4305.5,4305.4,2.5334]
[1759355689818,9.40010949,4305.5,4305.4,1.2061]
[1759355690121,9.91124804,4305.5,4305.4,1.2061]
[1759355690819,9.91124804,4305.5,4305.4,1.8543]
[1759355691409,9.91124804,4305.5,4305.4,1.6043]
[1759355691620,9.91124804,4305.5,4305.4,1.8543]
[1759355696424,4.91124804,4305.5,4305.4,2.5207]
[1759355701222,4.91173358,4305.5,4305.4,2.5207]
[1759355703329,4.91173358,4305.5,4305.4,7.5207]
[1759355703531,4.40010949,4305.5,4305.4,7.5207]
[1759355705629,3.21010949,4305.5,4305.4,7.5207]
[1759355706224,3.21010949,4305.5,4305.4,48.3207]
[1759355709728,0.00230949,4305.5,4305.4,48.3207]
[1759355710928,0.00230949,4305.5,4305.4,43.0707]
[1759355711435,0.00230949,4305.5,4305.4,43.3207]
[1759355713933,0.00230949,4305.5,4305.4,48.3207]
[1759355726443,0.00230949,4305.5,4305.4,43.3207]
[1759355727139,0.00230949,4305.5,4305.4,43.0707]
[1759355727337,0.00230949,4305.5,4305.4,43.3197]
[1759355730035,0.00230949,4305.5,4305.4,2.2707]
[1759355730344,0.00230949,4305.5,4305.4,1.2051]
[1759355732147,0.50730746,4305.5,4305.4,1.2051]
[1759355732846,5.50730746,4305.5,4305.4,1.6414]
[1759355733049,5.50730746,4305.5,4305.4,1.8904]
[1759355733245,5.50730746,4305.5,4305.4,1.2051]
[1759355733735,8.71510746,4305.5,4305.4,1.2051]
[1759355736051,5.50730746,4305.5,4305.4,1.2051]
[1759355736245,8.71510746,4305.5,4305.4,1.2051]
[1759355737352,8.21010949,4305.5,4305.4,1.2051]
[1759355739451,3.21010949,4305.5,4305.4,1.2051]
[1759355740254,0.00230949,4305.5,4305.4,1.2051]
[1759355740447,3.21010949,4305.5,4305.4,1.2051]
[1759355741945,3.21010949,4305.5,4305.4,0.9561]
[1759355742146,3.21010949,4305.5,4305.4,1.2051]
[1759355742952,4.19600163,4305.5,4305.4,1.2051]
[1759355743250,3.21010949,4305.5,4305.4,2.5515]
[1759355743453,4.19600163,4305.5,4305.4,2.5515]
[1759355753865,5.38600163,4305.5,4305.4,1.6414]
[1759355754065,11.30710557,4305.5,4305.4,0.9561]
[1759355754464,11.30710557,4305.5,4305.3,1.1976]
[1759355754666,0.92111394,4305.4,4305.3,1.1976]
[1759355754958,2.11111394,4305.4,4305.3,0.9496]
[1759355755267,2.11111394,4305.4,4305.3,1.1976]
[1759355759966,2.11111394,4305.4,4305.3,0.9496]
[1759355761467,7.11111394,4305.4,4305.3,0.9496]
[1759355761665,7.11225604,4305.4,4305.3,0.9496]
[1759355779884,5.32005604,4305.4,4305.3,0.9496]
[1759355780179,5.32005604,4305.4,4305.3,1.5991]
[1759355780483,5.88807818,4305.4,4305.3,1.5991]
[1759355780983,6.30594818,4305.4,4305.3,1.5991]
[1759355788289,6.15827167,4305.4,4305.3,1.5991]
[1759355790987,6.15827167,4305.4,4305.3,0.9496]
[1759355791287,7.22827167,4305.4,4305.3,0.9496]
[1759355798593,1.502,4305.1,4305.0,0.4]
[1759355798788,3.09160167,4305.1,4305.0,0.4]
[1759355799294,4.28160167,4305.1,4305.0,0.4]
[1759355800693,4.28160167,4305.1,4305.0,1.3831]
[1759355801292,4.28160167,4305.1,4305.0,0.9831]
[1759355801796,11.31160167,4305.1,4305.0,0.9831]
[1759355805197,11.31160167,4305.1,4305.0,1.359]
[1759355806893,4.28160167,4305.1,4305.0,1.359]
[1759355807901,8.25160167,4305.1,4305.0,1.359]
[1759355808500,4.28160167,4305.1,4305.0,1.359]
[1759355812403,0.826,4304.6,4304.5,1.0198]
[1759355812600,4.53818604,4304.6,4304.5,2.0029]
[1759355812807,4.53818604,4304.6,4304.5,2.6289]
[1759355815205,5.37640167,4304.6,4304.5,2.6289]
[1759355815505,4.96340167,4304.6,4304.5,2.6289]
[1759355818707,5.33590167,4304.6,4304.5,2.6289]
[1759355818911,6.1741173,4304.6,4304.5,2.6289]
[1759355831615,6.5920673,4304.6,4304.5,2.6289]
[1759355832418,6.1741173,4304.6,4304.5,2.6289]
[1759355832917,6.5920673,4304.6,4304.5,2.6289]
[1759355835616,3.3842673,4304.6,4304.5,2.6289]
[1759355835820,6.5920673,4304.6,4304.5,2.6289]
[1759355841129,6.1741173,4304.6,4304.5,2.6289]
[1759355841426,5.33590167,4304.6,4304.5,2.6289]
[1759355841624,6.1741173,4304.6,4304.5,2.6289]
[1759355843522,5.66973126,4304.6,4304.5,2.6289]
[1759355843730,6.58662921,4304.6,4304.5,2.6289]
[1759355844528,6.58662921,4304.6,4304.5,1.3831]
[1759355844730,6.78662921,4304.6,4304.5,1.3831]
[1759355845027,6.78662921,4304.6,4304.5,2.0183]
[1759355845326,6.58662921,4304.6,4304.5,2.0183]
[1759355846329,6.58662921,4304.6,4304.5,2.6137]
[1759355846722,6.83262921,4304.6,4304.5,2.6137]
[1759355847229,3.62482921,4304.6,4304.5,2.6137]
[1759355847429,6.83262921,4304.6,4304.5,2.6137]
[1759355848228,6.14305673,4304.6,4304.5,2.6137]
[1759355851331,6.14307849,4304.6,4304.5,2.6137]
[1759355853531,5.72512849,4304.6,4304.5,2.6137]
[1759355855635,6.14307849,4304.6,4304.5,2.6137]
[1759355859134,6.14306498,4304.6,4304.5,2.6137]
[1759355859331,7.32992376,4304.6,4304.5,0.9359]
[1759355859631,7.32992376,4304.6,4303.9,0.00250316]
[1759355859632,2.2123,4304.1,4303.9,0.00250316]
[1759355859834,6.8411662,4304.0,4303.9,0.00250316]
[1759355862440,2.63033,4303.8,4303.7,0.9359]
[1759355862642,3.3742862,4303.8,4303.7,0.9359]
[1759355863238,3.3742862,4303.8,4303.7,0.937844]
[1759355863940,3.3742862,4303.8,4303.7,1.573044]
[1759355867644,3.3742862,4303.8,4303.7,0.937844]
[1759355874446,3.37499152,4303.8,4303.7,0.937844]
[1759355878547,1.77106152,4303.8,4303.7,2.166944]
[1759355878745,1.4865203,4303.8,4303.7,2.166944]
[1759355882351,4.6943203,4303.8,4303.7,2.166944]
[1759355887467,4.69523748,4303.8,4303.7,2.166944]
[1759355890267,4.69523748,4303.8,4303.7,2.411944]
[1759355892973,5.28033748,4303.8,4303.7,2.411944]
[1759355897476,6.80533748,4303.8,4303.7,2.410944]
[1759355897772,5.86303748,4303.8,4303.7,2.410944]
[1759355903883,6.74863748,4303.8,4303.7,2.410944]